fUST/lending_fUST_20250702
["ID","MTS","AMOUNT","RATE_DAILY","PERIOD"]
[368975137,1751418657822,-1000.0,0.00022,2]
[368975138,1751418657835,-1000.0,0.00022,2]
[368975139,1751418657849,-1000.0,0.00022,2]
[368975140,1751418657861,-1000.0,0.00022,2]
[368975141,1751418657874,-1000.0,0.00022,2]
[368975142,1751418657888,-1000.0,0.00022,2]
[368975143,1751418657902,-1000.0,0.00022,2]
[368975144,1751418657915,-1000.0,0.00022,2]
[368975145,1751418657926,-1000.0,0.00022,2]
[368975146,1751418657939,-1000.0,0.00022,2]
[368975147,1751418657952,-890.97148267,0.00022038,6]
[368975148,1751418657966,-207.4,0.00022135,2]
[368975149,1751418657979,-500.0,0.00022135,2]
[368975150,1751418657993,-500.0,0.00022135,2]
[368975151,1751418658006,-5077.40232827,0.00022135,2]
[368975152,1751418658019,-460.0,0.00022145,2]
[368975153,1751418658032,-821.83,0.00022145,2]
[368975154,1751418658046,-548.32,0.00022145,2]
[368975155,1751418658058,-899.46,0.00022145,2]
[368975156,1751418658072,-548.24,0.00022145,2]
[368975157,1751418658198,-547.78,0.00022145,2]
[368975158,1751418658211,-575.87,0.00022145,2]
[368975159,1751418658222,-608.42,0.00022145,2]
[368975160,1751418658232,-1902.91,0.00022145,2]
[368975161,1751418658242,-844.7,0.00022145,2]
[368975162,1751418658253,-1079.94,0.00022145,2]
[368975163,1751418658263,-460.0,0.00022145,2]
[368975164,1751418658274,-1451.95,0.00022145,2]
[368975165,1751418658284,-460.0,0.00022145,2]
[368975166,1751418658294,-460.0,0.00022145,2]
[368975167,1751418658304,-497.46,0.00022145,2]
[368975168,1751418658314,-1502.12,0.00022145,2]
[368975169,1751418658325,-471.28,0.00022145,2]
[368975170,1751418658336,-641.66,0.00022145,2]
[368975171,1751418658348,-1291.17,0.00022145,2]
[368975172,1751418658358,-405.91,0.000222,7]
[368975173,1751418658368,-3858.24,0.000222,7]
[368975174,1751418658378,-890.97148267,0.00022314,7]
[368975175,1751418658388,-190.32,0.00022419,2]
[368975176,1751418658399,-821.83,0.00022419,2]
[368975177,1751418658409,-899.46,0.00022419,2]
[368975178,1751418658419,-548.24,0.00022419,2]
[368975179,1751418658429,-547.78,0.00022419,2]
[368975180,1751418658439,-575.87,0.00022419,2]
[368975181,1751418658448,-608.42,0.00022419,2]
[368975182,1751418658458,-1902.91,0.00022419,2]
[368975183,1751418658467,-844.7,0.00022419,2]
[368975184,1751418658477,-1079.94,0.00022419,2]
[368975185,1751418658487,-460.0,0.00022419,2]
[368975186,1751418658496,-1451.95,0.00022419,2]
[368975187,1751418658507,-489.24,0.00022419,2]
[368975188,1751418658517,-460.0,0.00022419,2]
[368975189,1751418658526,-497.46,0.00022419,2]
[368975190,1751418658536,-1502.12,0.00022419,2]
[368975191,1751418658546,-471.28,0.00022419,2]
[368975192,1751418658556,-641.66,0.00022419,2]
[368975193,1751418658566,-1291.17,0.00022419,2]
[368975194,1751418658576,-890.97148267,0.0002259,7]
[368975195,1751418658585,-821.83,0.00022693,2]
[368975196,1751418658595,-899.46,0.00022693,2]
[368975197,1751418658605,-548.24,0.00022693,2]
[368975198,1751418658614,-547.78,0.00022693,2]
[368975199,1751418658624,-575.87,0.00022693,2]
[368975200,1751418658634,-608.42,0.00022693,2]
[368975201,1751418658644,-1902.91,0.00022693,2]
[368975202,1751418658654,-844.7,0.00022693,2]
[368975203,1751418658663,-1079.94,0.00022693,2]
[368975204,1751418658674,-460.0,0.00022693,2]
[368975205,1751418658684,-1451.95,0.00022693,2]
[368975206,1751418658694,-460.0,0.00022693,2]
[368975207,1751418658704,-497.46,0.00022693,2]
[368975208,1751418658714,-1502.12,0.00022693,2]
[368975209,1751418658724,-471.28,0.00022693,2]
[368975210,1751418658734,-641.66,0.00022693,2]
[368975211,1751418658744,-1291.17,0.00022693,2]
[368975212,1751418658753,-382.90170959,0.00022794,2]
[368975213,1751418658763,-890.97148267,0.00022866,8]
[368975214,1751418658772,-1204.96498887,0.00022947,2]
[368975215,1751418658783,-821.83,0.00022967,2]
[368975216,1751418658793,-899.46,0.00022967,2]
[368975217,1751418658802,-548.24,0.00022967,2]
[368975218,1751418658811,-547.78,0.00022967,2]
[368975219,1751418658821,-575.87,0.00022967,2]
[368975220,1751418658830,-608.42,0.00022967,2]
[368975221,1751418658840,-1902.91,0.00022967,2]
[368975222,1751418658849,-844.7,0.00022967,2]
[368975223,1751418658858,-1079.94,0.00022967,2]
[368975224,1751418658868,-460.0,0.00022967,2]
[368975225,1751418658877,-1451.95,0.00022967,2]
[368975226,1751418658886,-172.57798674,0.00022967,2]
[368975227,1751418658896,-497.46,0.00022967,2]
[368975228,1751418658906,-1502.12,0.00022967,2]
[368975229,1751418658915,-471.28,0.00022967,2]
[368975230,1751418658924,-641.66,0.00022967,2]
[368975231,1751418658934,-1291.17,0.00022967,2]
[368975232,1751418658944,-1000.0,0.00023,2]
[368975233,1751418658953,-1000.0,0.00023,2]
[368975234,1751418658963,-1000.0,0.00023,2]
[368975235,1751418658972,-1000.0,0.00023,2]
[368975236,1751418658982,-1000.0,0.00023,2]
[368975237,1751418658992,-1000.0,0.00023,2]
[368975238,1751418659002,-1000.0,0.00023,2]
[368975239,1751418659011,-1000.0,0.00023,2]
[368975240,1751418659021,-1000.0,0.00023,2]
[368975241,1751418659031,-890.97148267,0.00023141,8]
[368975242,1751418659040,-821.83,0.00023241,2]
[368975243,1751418659050,-899.46,0.00023241,2]
[368975244,1751418659060,-548.24,0.00023241,2]
[368975245,1751418659069,-547.78,0.00023241,2]
[368975246,1751418659078,-575.87,0.00023241,2]
[368975247,1751418659088,-608.42,0.00023241,2]
[368975248,1751418659097,-1902.91,0.00023241,2]
[368975249,1751418659107,-844.7,0.00023241,2]
[368975250,1751418659116,-1079.94,0.00023241,2]
[368975251,1751418659126,-313.06,0.00023241,2]
[368975252,1751418659137,-1451.95,0.00023241,2]
[368975253,1751418659147,-497.46,0.00023241,2]
[368975254,1751418659157,-1502.12,0.00023241,2]
[368975255,1751418659166,-471.28,0.00023241,2]
[368975256,1751418659175,-641.66,0.00023241,2]
[368975257,1751418659186,-1291.17,0.00023241,2]
[368975258,1751418659195,-160.0,0.00023308,3]
[368975259,1751418659204,-890.97148267,0.00023417,9]
[368975260,1751418659214,-406.0,0.000235,2]
[368975261,1751418659224,-215.0738,0.00023504,2]
[368975262,1751418659234,-821.94,0.00023515,2]
[368975263,1751418659244,-899.524,0.00023515,2]
[368975264,1751418659253,-548.38805672,0.00023515,2]
[368975265,1751418659262,-547.85,0.00023515,2]
[368975266,1751418659272,-575.94,0.00023515,2]
[368975267,1751418659281,-608.6,0.00023515,2]
[368975268,1751418659290,-1903.11,0.00023515,2]
[368975269,1751418659301,-844.85,0.00023515,2]
[368975270,1751418659310,-1080.1459739,0.00023515,2]
[368975271,1751418659320,-1452.06,0.00023515,2]
[368975272,1751418659330,-497.57,0.00023515,2]
[368975273,1751418659340,-1502.25591917,0.00023515,2]
[368975274,1751418659350,-471.28,0.00023515,2]
[368975275,1751418659359,-641.77,0.00023515,2]
[368975276,1751418659369,-1291.198278,0.00023515,2]
[368975277,1751418659378,-151.0,0.000236,8]
[368975278,1751418659387,-585.02,0.000236,2]
[368975279,1751418659397,-890.97148267,0.00023693,9]
[368975280,1751418659406,-176.192718,0.00023744,2]
[368975281,1751418659415,-2103.71782793,0.000239,2]
[368975282,1751418659425,-382.90170959,0.00023951,2]
[368975283,1751418659434,-890.97148267,0.00023969,10]
[368975284,1751418659444,-9641.88,0.00024,2]
[368975285,1751418659454,-1000.0,0.00024,2]
[368975286,1751418659463,-1000.0,0.00024,2]
[368975287,1751418659473,-1000.0,0.00024,2]
[368975288,1751418659483,-1000.0,0.00024,2]
[368975289,1751418659493,-1000.0,0.00024,2]
[368975290,1751418659503,-1000.0,0.00024,2]
[368975291,1751418659512,-1000.0,0.00024,2]
[368975292,1751418659522,-1000.0,0.00024,2]
[368975293,1751418659532,-1000.0,0.00024,2]
[368975294,1751418659541,-524.61914904,0.00024,3]
[368975295,1751418659551,-524.61914904,0.00024,3]
[368975296,1751418659561,-924.889752,0.00024017,2]
[368975297,1751418659571,-890.97148267,0.00024245,10]
[368975298,1751418659581,-151.0,0.000244,9]
[368975299,1751418659591,-890.97148267,0.00024521,11]
[368975300,1751418659604,-300.0,0.00024657,4]
[368975301,1751418659613,-621.997654,0.00024715,4]
[368975302,1751418659623,-168.0,0.00024726,2]
[368975303,1751418659632,-890.97148267,0.00024797,11]
[368975304,1751418659642,-150.0,0.000248,5]
[368975305,1751418659652,-1204.96498887,0.000248,2]
[368975306,1751418659662,-2591.21836889,0.00024866,2]
[368975307,1751418659675,-168.0,0.00024867,2]
[368975308,1751418659691,-223.0315306,0.00024873,2]
[368975309,1751418659701,-1000.0,0.00024876,2]
[368975310,1751418659711,-1000.0,0.00024876,2]
[368975311,1751418659720,-1000.0,0.00024876,2]
[368975312,1751418659730,-1000.0,0.00024876,2]
[368975313,1751418659739,-1000.0,0.00024876,2]
[368975314,1751418659749,-520.0,0.00024876,2]
[368975315,1751418659759,-168.0,0.00024888,2]
[368975316,1751418659768,-121251.50601,0.00024899,7]
[368975317,1751418659778,-763002.226039,0.000249,2]
[368975318,1751418659788,-3632.481557,0.000249,2]
[368975319,1751418659798,-3632.48155699,0.00024923,2]
[368975320,1751418659807,-3632.48155699,0.00024946,2]
[368975321,1751418659817,-3632.48155699,0.00024969,2]
[368975322,1751418659826,-1971.68093,0.00025,5]
[368975323,1751418659836,-524.61914904,0.00025,10]
[368975324,1751418659845,-642.0,0.00025,2]
[368975325,1751418659854,-2200.0,0.00025046,2]
[368975326,1751418659865,-2591.21836889,0.00025062,2]
[368975327,1751418659874,-890.97148267,0.00025072,12]
[368975328,1751418659883,-2000.0,0.000251,2]
[368975329,1751418659892,-2000.0,0.000251,2]
[368975330,1751418659901,-200.0,0.000251,12]
[368975331,1751418659911,-382.90170959,0.00025107,2]
[368975332,1751418659920,-155.3458,0.00025113,2]
[368975333,1751418659930,-2000.0,0.000252,2]
[368975334,1751418660027,-151.0,0.00025202,7]
[368975335,1751418660038,-151.0,0.00025202,7]
[368975336,1751418660047,-151.0,0.00025202,7]
[368975337,1751418660056,-151.0,0.00025202,7]
[368975338,1751418660065,-151.0,0.00025202,2]
[368975339,1751418660074,-252.911701,0.00025202,7]
[368975340,1751418660083,-252.911701,0.00025202,7]
[368975341,1751418660093,-252.911701,0.00025202,7]
[368975342,1751418660104,-252.911701,0.00025202,7]
[368975343,1751418660115,-252.911701,0.00025202,7]
[368975344,1751418660126,-252.911701,0.00025202,7]
[368975345,1751418660135,-252.911701,0.00025202,7]
[368975346,1751418660149,-252.911701,0.00025202,7]
[368975347,1751418660160,-252.911701,0.00025202,7]
[368975348,1751418660169,-252.911701,0.00025202,7]
[368975349,1751418660180,-252.911701,0.00025202,7]
[368975350,1751418660191,-252.911701,0.00025202,7]
[368975351,1751418660202,-252.911701,0.00025202,7]
[368975352,1751418660212,-252.911701,0.00025202,7]
[368975353,1751418660224,-252.911701,0.00025202,7]
[368975354,1751418660235,-252.911701,0.00025202,7]
[368975355,1751418660244,-252.911701,0.00025202,7]
[368975356,1751418660253,-252.911701,0.00025202,7]
[368975357,1751418660263,-252.911701,0.00025202,7]
[368975358,1751418660272,-252.911697,0.00025202,7]
[368975359,1751418660283,-151.0,0.00025202,7]
[368975360,1751418660292,-151.0,0.00025202,7]
[368975361,1751418660303,-151.0,0.00025202,7]
[368975362,1751418660313,-151.0,0.00025202,7]
[368975363,1751418660322,-297.589839,0.00025202,7]
[368975364,1751418660331,-151.0,0.00025202,7]
[368975365,1751418660342,-151.0,0.00025202,7]
[368975366,1751418660352,-151.0,0.00025202,7]
[368975367,1751418660362,-151.0,0.00025202,7]
[368975368,1751418660371,-151.0,0.00025202,7]
[368975369,1751418660380,-151.0,0.00025202,7]
[368975370,1751418660390,-151.0,0.00025202,7]
[368975371,1751418660399,-151.0,0.00025202,7]
[368975372,1751418660409,-151.0,0.00025202,7]
[368975373,1751418660419,-151.0,0.00025202,7]
[368975374,1751418660430,-297.211128,0.00025202,7]
[368975375,1751418660440,-151.0,0.00025205,7]
[368975376,1751418660449,-151.0,0.00025205,7]
[368975377,1751418660458,-151.0,0.00025205,7]
[368975378,1751418660469,-151.0,0.00025205,7]
[368975379,1751418660478,-151.0,0.00025205,7]
[368975380,1751418660488,-151.0,0.00025205,7]
[368975381,1751418660497,-151.0,0.00025205,7]
[368975382,1751418660506,-151.0,0.00025205,7]
[368975383,1751418660516,-175.706882,0.00025205,7]
[368975384,1751418660526,-151.0,0.00025205,7]
[368975385,1751418660536,-151.0,0.00025205,7]
[368975386,1751418660547,-151.0,0.00025205,7]
[368975387,1751418660557,-155.678166,0.00025205,7]
[368975388,1751418660568,-151.0,0.00025205,7]
[368975389,1751418660578,-151.0,0.00025205,7]
[368975390,1751418660588,-151.0,0.00025205,7]
[368975391,1751418660598,-151.0,0.00025205,7]
[368975392,1751418660608,-151.0,0.00025205,7]
[368975393,1751418660618,-151.0,0.00025205,7]
[368975394,1751418660628,-151.0,0.00025205,7]
[368975395,1751418660637,-151.0,0.00025205,7]
[368975396,1751418660646,-151.0,0.00025205,7]
[368975397,1751418660656,-151.0,0.00025205,7]
[368975398,1751418660665,-151.0,0.00025205,7]
[368975399,1751418660675,-151.0,0.00025205,7]
[368975400,1751418660684,-228.761476,0.00025205,7]
[368975401,1751418660693,-151.0,0.00025205,7]
[368975402,1751418660702,-151.0,0.00025205,7]
[368975403,1751418660713,-166.69,0.00025205,2]
[368975404,1751418660723,-394.20983991,0.00025207,2]
[368975405,1751418660736,-5275.74689765,0.00025207,2]
[368975406,1751418660745,-863977.8198075,0.00025207,20]
[368975407,1751418660869,-1070.16714045,0.00025207,20]
[368975408,1751418660880,-2092.5542019,0.00025207,20]
[368975409,1751418662040,5000.0,0.000168,2]
[368975410,1751418662095,-460.0,0.00017203,3]
[368975411,1751418662107,-178.37,0.00017203,3]
[368975412,1751418662117,-460.0,0.00017213,2]
[368975413,1751418662126,-592.84166629,0.00017213,2]
[368975414,1751418662136,-460.0,0.00017487,2]
[368975415,1751418662148,-422.55480964,0.00017761,2]
[368975416,1751418662665,-460.0,0.00017213,2]
[368975417,1751418662675,-460.0,0.00017213,2]
[368975418,1751418662687,-460.0,0.00017487,2]
[368975419,1751418662697,-37.44519036,0.00017761,2]
[368975420,1751418662708,-595.5763155,0.00017761,2]
[368975421,1751418662718,-575.53,0.00018035,2]
[368975422,1751418662728,-3632.48155699,0.00024992,2]
[368975423,1751418662738,-200.0,0.000252,120]
[368975424,1751418662747,-17208.02597207,0.00025207,20]
[368975425,1751418662760,-12821.684981,0.00025207,20]
[368975426,1751418662771,-330.81902761,0.00025207,20]
[368975427,1751418734244,-167.18271929,0.00016912,2]
[368975428,1751418737048,-168.93641714,0.00016912,2]
[368975429,1751418740516,-167.52953148,0.00016912,2]
[368975430,1751418742870,-173.56896372,0.00016912,2]
[368975431,1751418747111,-226.32360183,0.00016912,2]
[368975432,1751418748804,-219.28612521,0.00016912,2]
[368975433,1751418752389,-197.77805411,0.00016912,2]
[368975434,1751418753962,-229.89106974,0.00016912,2]
[368975435,1751418756910,-229.76781314,0.00016912,2]
[368975436,1751418762222,-168.72263447,0.00016911,2]
[368975437,1751418763827,-211.8095416,0.00016911,2]
[368975438,1751418766435,-119.46782393,0.00016911,2]
[368975439,1751418766457,-98.8195741,0.00016911,2]
[368975440,1751418769315,-68.92818836,0.00016911,2]
[368975441,1751418769338,-106.3948091,0.00016911,2]
[368975442,1751418773793,-160.0,0.00016911,2]
[368975443,1751418778317,-175.32299746,0.00016911,2]
[368975444,1751418780576,-163.41782826,0.00016911,2]
[368975445,1751418782341,-163.09534951,0.00016911,2]
[368975446,1751418784325,-156.40173546,0.0001691,2]
[368975447,1751418785868,-143.59826454,0.0001691,2]
[368975448,1751418785892,-82.9880655,0.00016911,2]
[368975449,1751418789696,-228.58401621,0.00016911,2]
[368975450,1751418791843,-260.07143596,0.00016911,2]
[368975451,1751418794114,-165.03300639,0.00016911,2]
[368975452,1751418795878,-166.08138985,0.00016911,2]
[368975453,1751418795999,-233.6051909,0.00016911,2]
[368975454,1751418796026,-51.08191914,0.00016911,2]
[368975455,1751418796902,-284.68711004,0.00016911,2]
[368975456,1751418798469,-183.32674217,0.00016911,2]
[368975457,1751418801784,-165.8329999,0.00016911,2]
[368975458,1751418804469,-165.92326224,0.00016911,2]
[368975459,1751418808395,-151.58572632,0.00016911,2]
[368975460,1751418843387,-333.0,0.00016811,2]
[368975461,1751418862830,5000.0,0.000168,2]
[368975462,1751418878217,5000.0,0.000168,2]
[368975463,1751418894469,5000.0,0.000168,2]
[368975464,1751418894932,5045.1366208,0.00016012,2]
[368975465,1751418910075,2118.10624053,0.000168,2]
[368975466,1751418910100,2356.80938925,0.000168,2]
[368975467,1751418919710,300.0,0.00016012,2]
[368975468,1751418940662,5000.0,0.000168,2]
[368975469,1751418963325,5455.7257238,0.00016064,2]
[368975470,1751419003354,5000.0,0.000168,2]
[368975471,1751419018623,5000.0,0.000168,2]
[368975472,1751419038771,-511.0,0.00016811,2]
[368975473,1751419064599,5000.0,0.000168,2]
[368975474,1751419071405,488.884934,0.00016402,2]
[368975475,1751419071801,257.65476832,0.00016402,2]
[368975476,1751419080411,1140.92518463,0.000168,2]
[368975477,1751419080435,3859.07481537,0.000168,2]
[368975478,1751419138582,5000.0,0.000168,2]
[368975479,1751419155938,5000.0,0.000168,2]
[368975480,1751419170828,247.6571049,0.00016038,2]
[368975481,1751419171407,2916.56975707,0.000168,2]
[368975482,1751419188691,2384.6902627,0.000168,2]
[368975483,1751419231436,-460.0,0.00016811,2]
[368975484,1751419265624,5000.0,0.000168,2]
[368975485,1751419324893,404.93052579,0.000168,2]
[368975486,1751419373414,240.352649,0.00016399,2]
[368975487,1751419374172,164.10319354,0.00016401,2]
[368975488,1751419425092,-441.0,0.00016811,2]
[368975489,1751419454414,1398.3712459,0.0001591,2]
[368975490,1751419525311,838.885191,0.00015909,2]
[368975491,1751419551458,-151.0,0.00016811,2]
[368975492,1751419551480,-897.3722326,0.000169,2]
[368975493,1751419553097,-5767.25779686,0.000169,2]
[368975494,1751419597874,-165.03300639,0.00016811,2]
[368975495,1751419616163,-204.0,0.00016811,2]
[368975496,1751419628102,-27.80288731,0.00016811,2]
[368975497,1751419628124,-8195.90510362,0.000169,2]
[368975498,1751419637090,-1295.77834134,0.000169,2]
[368975499,1751419650085,-900.45908013,0.000169,2]
[368975500,1751419651489,2545.36525473,0.0001591,2]
[368975501,1751419651513,22354.63474527,0.0001591,2]
[368975502,1751419664626,7645.36525473,0.00015909,2]
[368975503,1751419664652,2354.63474527,0.00015909,2]
[368975504,1751419708184,163.86642153,0.000168,2]
[368975505,1751419711154,3683.1893203,0.00015907,2]
[368975507,1751419745112,-1983.95718956,0.000169,2]
[368975508,1751419747104,-35348.05550267,0.000169,2]
[368975509,1751419753090,-36784.71679265,0.000169,2]
[368975510,1751419760095,-23800.80612727,0.000169,2]
[368975514,1751419762123,-410.97223034,0.00016804,2]
[368975515,1751419762144,-29386.03817928,0.000169,2]
[368975516,1751419782456,158.2402005,0.000168,2]
[368975581,1751419832607,-4047.98702499,0.000169,2]
[368975582,1751419832618,-57550.52117655,0.000169,2]
[368975583,1751419832632,-50193.10077963,0.000169,2]
[368975584,1751419832644,-1431.41909973,0.000169,2]
[368975585,1751419832715,-4463.71083206,0.000169,2]
[368975610,1751419838442,-7621.99984843,0.000169,2]
[368975632,1751419838648,-557.09916993,0.000169,2]
[368975637,1751419838659,-138597.10196909,0.000169,2]
[368975640,1751419838676,-349870.31082561,0.000169,2]
[368975643,1751419838686,-151.0,0.000169,2]
[368975646,1751419838695,-278.06546582,0.000169,2]
[368975649,1751419838704,-1200.0,0.00016903,2]
[368975651,1751419838713,-300.0,0.00016903,2]
[368975653,1751419838723,-300.0,0.00016903,2]
[368975655,1751419838733,-300.0,0.00016903,2]
[368975657,1751419838744,-300.0,0.00016903,2]
[368975659,1751419838756,-1200.0,0.00016904,2]
[368975661,1751419838766,-23300.04877626,0.00016904,2]
[368975663,1751419838775,-500.0,0.00016904,2]
[368975665,1751419838784,-500.0,0.00016904,2]
[368975667,1751419838794,-378.81158693,0.00016904,2]
[368975669,1751419838804,-500.0,0.00016904,2]
[368975671,1751419838813,-500.0,0.00016904,2]
[368975673,1751419838822,-511.13860579,0.00016904,2]
[368975675,1751419838832,-500.0,0.00016904,2]
[368975677,1751419838841,-500.0,0.00016904,2]
[368975679,1751419838851,-500.0,0.00016904,2]
[368975681,1751419838860,-500.0,0.00016904,2]
[368975683,1751419838870,-500.0,0.00016904,2]
[368975685,1751419838879,-500.0,0.00016904,2]
[368975687,1751419838888,-500.0,0.00016904,2]
[368975689,1751419838898,-237.75288959,0.00016904,2]
[368975691,1751419838908,-500.0,0.00016904,2]
[368975693,1751419838917,-307.72458745,0.00016904,2]
[368975695,1751419838927,-500.0,0.00016904,2]
[368975697,1751419838936,-500.0,0.00016904,2]
[368975699,1751419838946,-500.0,0.00016904,2]
[368975701,1751419838955,-500.0,0.00016904,2]
[368975703,1751419838965,-500.0,0.00016904,2]
[368975705,1751419838974,-500.0,0.00016904,2]
[368975707,1751419838984,-500.0,0.00016904,2]
[368975708,1751419838993,-500.0,0.00016904,2]
[368975709,1751419839003,-500.0,0.00016904,2]
[368975710,1751419839012,-500.0,0.00016904,2]
[368975711,1751419839022,-425.47085222,0.00016904,2]
[368975712,1751419839031,-300.0,0.00016904,2]
[368975713,1751419839041,-1553.02571945,0.00016909,2]
[368975714,1751419839051,-216.83042345,0.00016911,2]
[368975715,1751419839060,-336.46032047,0.00016911,2]
[368975716,1751419839070,-323.68093431,0.00016911,2]
[368975717,1751419839080,-500.0,0.00016911,2]
[368975718,1751419839090,-160.0,0.00016912,2]
[368975719,1751419839101,-363698.19770754,0.00016912,2]
[368975720,1751419839112,-460.0,0.00017009,2]
[368975721,1751419839122,-332.94815065,0.00017009,2]
[368975722,1751419839132,-460.0,0.00017009,2]
[368975723,1751419839142,-460.0,0.0001701,2]
[368975724,1751419839152,-460.0,0.0001701,2]
[368975725,1751419839162,-460.0,0.0001701,2]
[368975726,1751419839173,-460.0,0.0001701,2]
[368975727,1751419839184,-460.0,0.0001701,2]
[368975728,1751419839194,-460.0,0.0001701,2]
[368975729,1751419839209,-460.0,0.0001701,2]
[368975731,1751419839219,-460.0,0.0001701,2]
[368975733,1751419839229,-460.0,0.0001701,2]
[368975735,1751419839238,-460.0,0.0001701,2]
[368975737,1751419839248,-460.0,0.0001701,2]
[368975739,1751419839258,-460.0,0.0001701,2]
[368975741,1751419839267,-460.0,0.0001701,2]
[368975743,1751419839276,-460.0,0.0001701,2]
[368975745,1751419839287,-460.0,0.0001701,2]
[368975747,1751419839297,-460.0,0.0001701,2]
[368975749,1751419839306,-460.0,0.0001701,2]
[368975751,1751419839315,-460.0,0.0001701,2]
[368975753,1751419839325,-460.0,0.0001701,2]
[368975755,1751419839334,-460.0,0.0001701,2]
[368975757,1751419839345,-460.0,0.0001701,2]
[368975759,1751419839354,-300.93,0.0001701,2]
[368975762,1751419839364,-460.0,0.0001701,2]
[368975764,1751419839374,-407.86819657,0.0001701,2]
[368975766,1751419839383,-460.0,0.0001701,2]
[368975767,1751419839393,-460.0,0.0001701,2]
[368975770,1751419839402,-460.49276469,0.0001701,2]
[368975771,1751419839411,-460.0,0.0001701,2]
[368975774,1751419839421,-460.0,0.0001701,2]
[368975776,1751419839430,-511.19776388,0.0001701,2]
[368975778,1751419839440,-460.0,0.0001701,2]
[368975788,1751419839577,-460.0,0.0001701,2]
[368975789,1751419839587,-466.00231493,0.0001701,2]
[368975790,1751419839602,-460.0,0.0001701,2]
[368975791,1751419839612,-460.0,0.0001701,2]
[368975792,1751419839622,-460.0,0.0001701,2]
[368975793,1751419839632,-460.0,0.0001701,2]
[368975794,1751419839643,-460.0,0.0001701,2]
[368975795,1751419839653,-460.0,0.0001701,2]
[368975796,1751419839664,-460.0,0.0001701,2]
[368975797,1751419839674,-460.0,0.0001701,2]
[368975798,1751419839684,-460.0,0.0001701,2]
[368975799,1751419839694,-346.74669501,0.0001701,2]
[368975800,1751419839703,-460.0,0.0001701,2]
[368975801,1751419839713,-460.0,0.0001701,2]
[368975802,1751419839722,-402.6225621,0.0001701,2]
[368975803,1751419839732,-513.18574557,0.0001701,2]
[368975804,1751419839742,-460.0,0.0001701,2]
[368975805,1751419839751,-460.0,0.0001701,2]
[368975806,1751419839761,-460.0,0.0001701,2]
[368975807,1751419839771,-460.0,0.0001701,2]
[368975808,1751419839780,-460.0,0.0001701,2]
[368975809,1751419839790,-460.0,0.0001701,2]
[368975810,1751419839801,-460.0,0.0001701,2]
[368975811,1751419839810,-460.0,0.0001701,2]
[368975812,1751419839820,-460.0,0.0001701,2]
[368975813,1751419839830,-460.0,0.0001701,2]
[368975814,1751419839843,-460.0,0.0001701,2]
[368975815,1751419839854,-460.0,0.0001701,2]
[368975816,1751419839864,-462.88615732,0.0001701,2]
[368975817,1751419839874,-461.24433483,0.0001701,2]
[368975818,1751419839884,-460.0,0.0001701,2]
[368975819,1751419839893,-460.0,0.0001701,2]
[368975820,1751419839903,-460.0,0.0001701,2]
[368975821,1751419839915,-460.0,0.0001701,2]
[368975822,1751419839926,-460.0,0.0001701,2]
[368975823,1751419839935,-460.0,0.0001701,2]
[368975824,1751419839945,-460.0,0.0001701,2]